Cogmind - Beta 16 @@@ ROGUE MODE // 2025.11.14 @ 17:46:37 Player: Lazz Result: Self-destructed Performance ------------- Evolutions (1) 500 Regions Visited (3) 600 Robots Destroyed (13) 65 Value Destroyed (342) 342 Prototype IDs (0) 0 Alien Tech Used (0) 0 Bonus (0) 0 TOTAL SCORE: 1507 Bonus ------- None Cogmind --------- Core Integrity 40/400 Matter 300/300 Energy 98/100 System Corruption 0% Temperature Cool (0) Movement Core (50) Location -9/Materials Parts ------- > --- POWER (1) -------- (None) > --- PROPULSION (2) --- (None) > --- UTILITY (4) ------ Terrain Scan Processor > --- WEAPON (2) ------- (None) > --- INVENTORY (5) ---- (None) Peak State ------------ > --- POWER ------------ Light Ion Engine > --- PROPULSION ------- Aluminum Leg Aluminum Leg > --- UTILITY ---------- Small Storage Unit Improved Terrain Scanner Terrain Scan Processor Weapon Shielding > --- WEAPON ----------- Light Assault Rifle Light Assault Rifle > --- INVENTORY -------- Light Treads Light Treads Light Assault Rifle Mining Laser [Rating: 12] Favorites ----------- Power Light Ion Engine Engine Light Ion Engine Propulsion Aluminum Leg Treads Light Treads Leg Aluminum Leg Utility Small Storage Unit Device Improved Terrain Scanner Storage Small Storage Unit Processor Terrain Scan Processor Protection Weapon Shielding Weapon Light Assault Rifle Ballistic Gun Light Assault Rifle Special Weapon Mining Laser Build | -11 -10 -10 -9 ------- Run | Yrd Mat Min Mat Slots Evolved 2 | . . . 2 Power . | . . . . Propulsion . | . . . . Utility 2 | . . . 2 Weapon . | . . . . Parts Attached 21 | 7 5 . 9 Power 4 | 1 1 . 2 Engine 4 | 1 1 . 2 Core . | . . . . Reactor . | . . . . Propulsion 8 | 2 3 . 3 Treads 3 | . . . 3 Leg 5 | 2 3 . . Wheel . | . . . . Hover . | . . . . Flight . | . . . . Utility 5 | 2 . . 3 Device 1 | 1 . . . Storage 1 | 1 . . . Processor 1 | . . . 1 Hackware . | . . . . Protection 2 | . . . 2 Artifact . | . . . . Weapon 4 | 2 1 . 1 Energy Gun . | . . . . Energy Cannon . | . . . . Ballistic Gun 3 | 2 1 . . Ballistic Cannon . | . . . . Launcher . | . . . . Special Weapon 1 | . . . 1 Impact Weapon . | . . . . Slashing Weapon . | . . . . Piercing Weapon . | . . . . Special Melee Weapon . | . . . . Unidentified Prototypes . | . . . . Parts Lost 14 | . 2 . 12 Power 4 | . 1 . 3 Propulsion 4 | . 1 . 3 Utility 2 | . . . 2 Weapon 4 | . . . 4 Highest Loss Streak 6 | . 2 . 6 To Critical Strikes . | . . . . Average Backups 3 | 2 4 5 2 Power . | . . . . Propulsion 1 | 1 2 2 . Utility . | . . 1 . Weapon 1 | . 1 2 1 Tool/Special . | . . . . Unused Backups . | . . . . Power . | . . . . Propulsion . | . . . . Utility . | . . . . Weapon . | . . . . Tool/Special . | . . . . Average Slot Usage (%) 87 | . 98 100 80 Engine 9 | . 12 14 7 Treads 9 | . . . 15 Leg 12 | . 28 28 1 Device 8 | . 14 14 4 Storage 12 | . 14 14 10 Processor 6 | . . . 11 Protection 6 | . . . 11 Ballistic Gun 20 | . 28 28 15 Special Weapon 1 | . . . 2 Peak Build Rating 12 | 9 9 9 12 Average Rating 8 | 5 8 9 9 On Entrance 6 | . 9 9 9 Avg Prop Armor Cover (%) . | . . . . Naked Turns . | . . . . Heaviest Build 13 | 11 11 11 13 Greatest Support 40 | 20 20 20 40 Greatest Overweight (x) 3 | 2 . . 3 Average Overweight (x) . | . . . . Largest Inventory Capacity 8 | 8 8 8 8 Average Capacity 7 | 7 8 8 7 Most Carried 7 | 3 7 5 5 Average Carried 3 | 2 4 5 2 Final Capacity 8 | 8 8 8 5 Final Carried 5 | 3 5 5 . Class Distribution -------------------- 90% | Mutant 9% | Scavenger-Mutant Dominant Class ---------------- Mutant | -10/Materials Mutant | -10/Mines Mutant | -9/Materials Resources | -11 -10 -10 -9 ----------- Run | Yrd Mat Min Mat Matter Collected 506 | 214 62 . 230 Remotely . | . . . . Salvage Created 313 | 17 113 . 183 Parts 28 | 3 14 . 11 Haulers Intercepted . | . . . . Recyclers Shooed . | . . . . Parts Field Recycled . | . . . . Retrieved Matter . | . . . . Parts Self-Destructed . | . . . . Prevented . | . . . . Parts Restored . | . . . . Kills | -11 -10 -10 -9 ------- Run | Yrd Mat Min Mat Combat Hostiles Destroyed 12 | . 5 . 7 Guns 10 | . 5 . 5 Cannons 2 | . . . 2 Classes Destroyed 4 | 1 2 . 1 Tunneler 1 | 1 . . . Swarmer 6 | . 3 . 3 Grunt 5 | . 2 . 3 Sentry 1 | . . . 1 Best Kill Streak 4 | 1 4 . 3 Combat Bots Only 4 | . 4 . 3 Max Kills in Single Turn 1 | 1 1 . 1 Gunslinging . | . . . . Exploded . | . . . . Melee . | . . . . Uniques/NPCs Destroyed . | . . . . Combat | -11 -10 -10 -9 -------- Run | Yrd Mat Min Mat Hostile Shots Fired 211 | . 52 . 159 Missed 54 | . 16 . 38 Hits 157 | . 36 . 121 Projectile 157 | . 36 . 121 AOE 1 | . 1 . . Damage Taken 1598 | . 471 . 1127 Core 426 | . 66 . 360 Absorbed by Shields . | . . . . Redirected to Shielding 54 | . . . 54 Core Remaining (%) 86 | 100 . 73 . Volleys Fired 60 | 3 20 3 34 Largest 2 | 2 2 2 2 Hottest 120 | 40 40 40 120 Shots Fired 111 | 6 40 6 59 Gun 104 | 6 40 6 52 Cannon . | . . . . Launcher . | . . . . Special 7 | . . . 7 Kinetic 104 | 6 40 6 52 Thermal 7 | . . . 7 Explosive . | . . . . Electromagnetic . | . . . . Robot Hit Streak 9 | 4 4 4 9 Robot Miss Streak 4 | 1 4 1 3 Penetration Max . | . . . . Secondary Targets 2 | . 1 . 1 Max Gunslinging Chain 1 | . 1 . 1 Shots Hit Robots 65 | 5 16 4 40 Core Hits 26 | 2 7 1 16 Critical Kills . | . . . . Critical Parts Destroyed . | . . . . Critical Strikes . | . . . . Melee Attacks . | . . . . Impact . | . . . . Slashing . | . . . . Piercing . | . . . . Sneak Attacks . | . . . . Combat Hostiles . | . . . . Follow-up Attacks . | . . . . Damage Inflicted 608 | 45 139 29 395 Guns 534 | 45 139 29 321 Cannons . | . . . . Explosions . | . . . . Melee . | . . . . Ramming 2 | . . . 2 Kinetic 534 | 45 139 29 321 Thermal 72 | . . . 72 Explosive . | . . . . Electromagnetic . | . . . . Impact . | . . . . Slashing . | . . . . Piercing . | . . . . Highest Corruption . | . . . . Average Corruption . | . . . . Corruption Purged . | . . . . Corruption Blocked . | . . . . Overload Shots . | . . . . Overflow Damage . | . . . . Projectiles . | . . . . Explosions . | . . . . Melee . | . . . . Knockbacks . | . . . . Impact . | . . . . Kinetic . | . . . . Secondary . | . . . . Self-Inflicted Damage . | . . . . Shots . | . . . . Rammed 1 | . . . 1 Targets Rammed 1 | . . . 1 Kicked . | . . . . Crushed . | . . . . Highest Temperature 40 | . 12 . 40 Average Temperature 11 | . 6 . 12 Received Heat Transfer 438 | . 162 . 276 Siege Activations . | . . . . Martial Activations . | . . . . Shielding Activations . | . . . . Robots Disrupted . | . . . . Combat Hostiles . | . . . . Robots Corrupted . | . . . . Combat Hostiles . | . . . . Parts Fried . | . . . . Impact Corruptions . | . . . . Robots Melted . | . . . . Combat Hostiles . | . . . . Parts Melted . | . . . . Heat Transferred 150 | . . . 150 Parts Sabotaged . | . . . . Parts Stolen . | . . . . Parts Stripped . | . . . . Power Chain Reactions . | . . . . Alert | -11 -10 -10 -9 ------- Run | Yrd Mat Min Mat Maximum Alert Level . | . . . . Low Security (%) 100 | 100 100 100 100 Level 1 . | . . . . Level 2 . | . . . . Level 3 . | . . . . Level 4 . | . . . . Level 5 . | . . . . High Security . | . . . . Max Security . | . . . . Peak Influence 145 | 5 145 40 119 Initial 40 | . . 40 11 Average 32 | . 49 37 30 Influence Increases 399 | 5 165 . 229 Destroy 0b10 Robot/C 240 | . 100 . 140 Destroy 0b10 Robot/NC 5 | 5 . . . Destroy Leader 50 | . 20 . 30 Successful Hack 5 | . . . 5 Select Force Hacks 50 | . . . 50 Destroy Structure 4 | . . . 4 Lose Combat Pursuer 45 | . 45 . . Influence Decreases 360 | 5 60 75 220 Entered New Map 84 | . . 65 19 Time Decay 156 | 5 40 10 101 Lost Part 120 | . 20 . 100 Squads Dispatched 3 | . 1 . 2 Investigation 1 | . . . 1 Extermination . | . . . . Reinforcement 2 | . 1 . 1 Assault . | . . . . Garrison . | . . . . Intercept . | . . . . Searches Triggered . | . . . . Construction Impeded . | . . . . Haulers Reinforced . | . . . . Active Scanning Responses . | . . . . Cargo Convoy Interrupts . | . . . . Stealth | -11 -10 -10 -9 --------- Run | Yrd Mat Min Mat Distress Signals 1 | . 1 . . Communications Jammed . | . . . . Distress Signals . | . . . . Times Spotted 34 | . 13 . 21 Peak Tracking Total 10 | . 7 . 10 Tactical Retreats 2 | . 2 . . Traps | -11 -10 -10 -9 ------- Run | Yrd Mat Min Mat Traps Triggered 3 | . . . 3 Indirectly . | . . . . Trap Hack Attempts . | . . . . Triggered . | . . . . Disarmed . | . . . . Reprogrammed . | . . . . Reused . | . . . . Traps Extracted . | . . . . Installed . | . . . . Triggered . | . . . . Machines | -11 -10 -10 -9 ---------- Run | Yrd Mat Min Mat Machines Disabled . | . . . . Max in Single Turn . | . . . . Machines Repaired . | . . . . Machines Dismantled . | . . . . Machines Sabotaged 1 | . . . 1 Overloaded Fab Kills . | . . . . Hacking | -11 -10 -10 -9 --------- Run | Yrd Mat Min Mat Machines Accessed 5 | . 1 . 4 Terminals 5 | . 1 . 4 Fabricators . | . . . . Repair Stations . | . . . . Recycling Units . | . . . . Scanalyzers . | . . . . Garrison Access . | . . . . Total Hacks 15 | . 3 . 12 Successful 2 | . . . 2 Failed 13 | . 3 . 10 Catastrophic 5 | . 1 . 4 Database Lockouts . | . . . . Manual 12 | . 3 . 9 Terminals 15 | . 3 . 12 Fabricators . | . . . . Repair Stations . | . . . . Recycling Units . | . . . . Scanalyzers . | . . . . Garrison Access . | . . . . Terminal Hacks 1 | . . . 1 Zone Layout 1 | . . . 1 Fabricator Hacks . | . . . . Repair Station Hacks . | . . . . Recycling Unit Hacks . | . . . . Scanalyzer . | . . . . Garrison Access Hacks . | . . . . Unauthorized Hacks 1 | . . . 1 Terminals 1 | . . . 1 Sabotage 1 | . . . 1 Fabricators . | . . . . Repair Stations . | . . . . Recycling Units . | . . . . Scanalyzers . | . . . . Garrison Access . | . . . . Data Cores Recovered . | . . . . Used . | . . . . Hacking Detections 5 | . 1 . 4 Full Trace Events 2 | . . . 2 Feedback Events . | . . . . Feedback Blocked . | . . . . Robot Schematics Acquired . | . . . . Robots Built . | . . . . Authchips . | . . . . Time . | . . . . Total Robot Build Rating . | . . . . Part Schematics Acquired . | . . . . Parts Built . | . . . . Authchips . | . . . . Time . | . . . . Total Part Build Rating . | . . . . Part Studies Acquired . | . . . . Parts Repaired . | . . . . Time . | . . . . Parts Recycled . | . . . . Recycled Matter . | . . . . Retrieved Matter . | . . . . Retrieved Components . | . . . . Parts Scanalyzed . | . . . . Part Schematics Acquired . | . . . . Parts Damaged . | . . . . Bothacking | -11 -10 -10 -9 ------------ Run | Yrd Mat Min Mat Used RIF Installer . | . . . . Robots Hacked . | . . . . Non-combat . | . . . . Combat . | . . . . Robot Hacks Applied . | . . . . Relay Couplers Released . | . . . . Fabnet Peak Effective % . | . . . . Robots Rewired . | . . . . Allies Hacked . | . . . . Hacks Repelled . | . . . . Allies | -11 -10 -10 -9 -------- Run | Yrd Mat Min Mat Total Allies . | . . . . Largest Group . | . . . . Highest-Rated Group . | . . . . Highest-Rated Ally . | . . . . Total Orders . | . . . . Ally Attacks . | . . . . Total Damage . | . . . . Kills . | . . . . Allies Corrupted . | . . . . Allies Melted . | . . . . Intel | -11 -10 -10 -9 ------- Run | Yrd Mat Min Mat Active Infowar (turns) 352 | 6 181 26 139 Terrain 352 | 6 181 26 139 Robot Analysis Total . | . . . . Derelict Logs Recovered . | . . . . Drone Launches . | . . . . Drone Recoveries . | . . . . Exploration | -11 -10 -10 -9 ------------- Run | Yrd Mat Min Mat Turns Passed 619 | 73 181 26 339 Spaces Moved 291 | 45 99 15 132 Core 36 | 6 . . 30 Treads 85 | . . . 85 Legs 170 | 39 99 15 17 Wheels . | . . . . Hover . | . . . . Flight . | . . . . Fastest Speed 50 | 50 120 120 50 Average Speed 128 | 116 120 120 140 Slowest Speed 200 | 150 120 120 200 Overloaded Moves . | . . . . Propulsion Burnouts . | . . . . Robots Hopped . | . . . . Potential Cave-ins . | . . . . Cave-ins Triggered . | . . . . Exploration Rate (%) 17 | 3 33 11 22 Regions Visited 3 Branch Regions 1 Pre-discovered Areas . | . . . . Known Exits Taken . | . . . . Unknown Exits Taken 3 | 1 1 1 . Scrap Searched . | . . . . Spaces Dug 1 | . . . 1 Terrain Destroyed 4 | . . . 4 Melee . | . . . . Projectile 4 | . . . 4 AOE . | . . . . Terrain Rammed . | . . . . Walls Destroyed . | . . . . Machines Disabled . | . . . . Actions | -11 -10 -10 -9 --------- Run | Yrd Mat Min Mat Total 421 | 57 128 18 218 Wait 34 | . . 1 33 Move 288 | 44 98 14 132 Hop . | . . . . Pick Up 7 | 3 3 . 1 Fast Attach 16 | 7 . . 9 Attach 8 | . 2 . 6 Detach . | . . . . Swap 3 | . 3 . . Drop 4 | . 2 . 2 Fire 60 | 3 20 3 34 Melee . | . . . . Ram . | . . . . Kick . | . . . . Crush 1 | . . . 1 Escape Stasis . | . . . . Rewire . | . . . . Trap . | . . . . Miscellaneous . | . . . . Route ------- -11/Scrapyard -10/Materials -10/Mines -9/Materials History --------- Turn | Location | Event 12 | -11/Scrapyard | Discovered new exit (range 15) 74 | -11/Scrapyard | Entered Materials 229 | -10/Materials | Discovered new exit (range 15) 255 | -10/Materials | Entered Mines 255 | -10/Mines | Discovered new exit (range 13) 281 | -10/Mines | Entered Materials 281 | -9/Materials | Evolved 2 slots: Utility x2 547 | -9/Materials | Lost 4 parts (1p1n2w) 560 | -9/Materials | Build established: Mutant 569 | -9/Materials | Core integrity fell below 50% 605 | -9/Materials | Core integrity fell below 20% 620 | -9/Materials | Self-destructed Last Messages --------------- 00577_ ALERT: Suspicious activity at Terminal M001. Dispatching Investigation squad. 00579_ Lgt. Assault Rifle destroyed. 00582_ Slammed into S-10 Pest. 00583_ Lgt. Treads destroyed. 00585_ Weapon Shielding destroyed. 00586_ K-01 Serf collects debris. 00587_ Mining Laser destroyed. 00590_ K-01 Serf collects debris. 00592_ Lgt. Ion Engine destroyed. 00593_ Acquired 47 matter. 00595_ Lgt. Treads destroyed. 00595_ K-01 Serf collects debris. 00605_ O-16 Technician: "IFF HANDSHAKE FAILED. SECURING TERMINAL." 00611_ K-01 Serf cleans the Electrolysis Chamber. 00612_ Connecting with Terminal... 00615_ Dropped Weapon Shielding. 00616_ Dropped Sml. Storage Unit. Map ----- +----------------------------------------------------+ | ?????????????????????????????????????????????????? | | ?????????????????????????????????????????????????? | | ?????????????????????????????????????????????????? | | ????####?????????????????????????????????????????? | | ?### ????????????????????????????????????????? | | ?? ????????????????????????????????????????? | | ??? T ????????????????????????????????????????? | | ??? ########????????????????????????????????? | | #### # #????????????????????????????????? | | ???## ## """ #????????????????????????????????? | | ????# ## "R" #????????????????????????????????? | | ##### ## " " #??###########???????????????????? | | ## ## #??# #???????????????????? | | "" ## ## #??# "" #???????????????????? | | "" # ##+######## "" #???????????????????? | | "" # # T" #???????????????????? | | + / """ "" #???????????????????? | | "" # ] % # """ "" #???????????????????? | | "" # ##+##### # """!! #???????????????????? | | "" ## ## # # ss #???????????????????? | | ## ## "S + ######s####???????????????????? | | ##### ## """ ## #????# #??????????????????????? | | ##### ## "" ## #????# #??????????????????????? | | T " ## ## #????# #??????????????????????? | | # ## ## #????# #??????????????????????? | | # ########## #????#@#??????????????????????? | | + ########## +????# #??????????????????????? | | ##### # ## #????# #??????????????????????? | | ! # # ## ?????# #??????????????????????? | | # # ## ?????# #??????????????????????? | | "" # # ## ?????#k#??????????????????????? | | "" + + ## ?????# #??????????????????????? | | "" # #####+####??????# #??????????????????????? | | # ! #??#??????#k#??????????????????????? | | ######+###### #??#???????Y???????????????????????? | | ??# ## #??#??????? ???????????????????????? | | #?# ## #?##??????? ???????????????????????? | | #?# ## ####??????? ???????????????????????? | | ### "" # # ##??????? ???????????????????????? | | ### "" """ #???#???? #??? ???????????????????????? | | #?# "T """ ##???#???????? ???????????????????????? | | #?# "" """ #?#####???#???????????????????????????? | | ?## "" """ #?###?#???#???????????????????????????? | | ?## ##??####??????????????????????????????? | | #######/#####????###?????????????????????????????? | | #?###?# #?########??##?# ????????????????????????? | | ####### #?#?###????#??#? ????????????????????????? | | ###?# ####??####?#?#?? ????????????????????????? | | ###?# #######?#??##??# ????????????????????????? | | ##??#[ #?#?##??#??????????????????????????? | +----------------------------------------------------+ Best States ------------- Heat Dissipation 28 Energy Generation 10 Energy Capacity 250 Matter Stores 300 Matter Capacity 300 Sight Range 16 Terrain Scan Range 16 Terrain Scan Density 85 Weapon Shielding 33 Evasion (%) 55 Recoil Reduction 2 Item Schematics ----------------- None Robot Schematics ------------------ None Fabricated ------------ Nothing Repaired ---------- Nothing Studied --------- None Alien Tech Used ----------------- None Achievements -------------- None Challenges ------------ None Game ------ Seed SmartCommArchive Manual? 0 Play Time 00:08:10 Cumulative 74.2 hours Start 2025.11.14 @ 17:38:26 End 2025.11.14 @ 17:46:37 Sessions 1 Manual Loads 0 Difficulty Rogue Special Mode None Game No. 98 Rogue 98 Adventurer 0 Explorer 0 Win Type - Total 1 Types 1/0/0/0/0/0/0/0/0/0 Lore% 45 Gallery% 47 Achievement% 35 Wizard Run 0 Options --------- Layout 2 ASCII 0 Keyboard 0 Movement Mouse Keybinds 0 Fullscreen 1 Font 24/Smallcaps Map View 50x44 Zoom Use 0% Tactical HUD 1 Map Filters NONE Filters NONE Steam 1 RUN: 9b0796a8-74c5-46be-ba80-2427f2fa2f99